bitfinex/quotes_ETHUSD_20241129
["timestamp","ask_amount","ask_price","bid_price","bid_amount"]
[1732895864885,0.7849,3626.7,3625.5,0.35709]
[1732895865087,0.7849,3626.7,3625.3,0.8126]
[1732895866500,0.7849,3626.7,3625.4,2.7583]
[1732895866997,0.7849,3626.7,3625.3,0.8126]
[1732895867207,0.7849,3626.7,3625.5,2.75821]
[1732895867358,0.7849,3626.7,3625.4,2.7583]
[1732895867559,0.7849,3626.7,3625.4,0.357092]
[1732895869189,0.7849,3626.7,3625.0,0.7831]
[1732895869387,0.7779,3626.4,3624.8,2.75876]
[1732895869586,0.7779,3626.4,3624.6,3.51327]
[1732895869587,0.7779,3626.4,3624.9,2.75867]
[1732895869986,0.7779,3626.4,3625.0,2.75857]
[1732895870156,0.7779,3626.4,3625.3,2.75838]
[1732895870364,0.7779,3626.4,3625.6,2.75815]
[1732895871198,0.7779,3626.4,3625.5,2.75822]
[1732895871367,0.7779,3626.4,3625.6,2.75814]
[1732895871568,0.7779,3626.4,3625.3,1.30609]
[1732895871815,0.7779,3626.4,3625.5,2.75816]
[1732895871993,0.7779,3626.4,3625.3,0.7544]
[1732895872194,0.7779,3626.4,3625.5,2.75823]
[1732895872397,0.7779,3626.4,3625.3,0.7544]
[1732895872583,0.7779,3626.4,3625.3,3.51276]
[1732895872779,0.7779,3626.4,3625.4,0.351276]
[1732895873388,0.7779,3626.4,3625.5,2.75823]
[1732895873804,0.7779,3626.4,3625.4,0.351276]
[1732895874002,0.7779,3626.4,3625.5,2.75817]
[1732895874524,0.7779,3626.4,3625.7,2.75807]
[1732895874688,0.7779,3626.4,3625.7,0.33462731]
[1732895875014,0.7779,3626.4,3625.8,2.75801]
[1732895875776,0.7779,3626.4,3625.7,0.33462731]
[1732895876020,0.7779,3626.4,3625.7,3.09269731]
[1732895876176,0.7779,3626.4,3625.8,2.758]
[1732895876884,0.7779,3626.4,3625.7,3.09270731]
[1732895877103,0.7779,3626.4,3625.8,0.58508773]
[1732895877718,0.7779,3626.4,3625.8,2.75796]
[1732895878087,0.813,3627.2,3626.1,0.8186]
[1732895878288,0.813,3627.5,3626.7,2.75732]
[1732895878633,0.813,3627.5,3625.5,2.75822]
[1732895878634,0.813,3627.5,3626.8,0.8322]
[1732895878779,0.8042,3628.0,3627.2,2.75688]
[1732895879302,0.8042,3628.0,3627.0,2.75709]
[1732895880263,0.8042,3628.0,3626.8,3.58943]
[1732895880380,0.8042,3628.0,3627.1,2.75701]
[1732895880581,0.8042,3628.0,3626.9,2.75716]
[1732895880907,0.8042,3628.0,3627.4,2.75675]
[1732895881222,0.8042,3628.0,3626.9,0.358936]
[1732895882483,0.8042,3628.0,3626.4,3.56645]
[1732895882686,0.8042,3628.0,3626.4,0.8089]
[1732895882884,0.8042,3628.0,3626.9,2.75714]
[1732895883084,0.8042,3628.0,3626.7,2.75732]
[1732895883319,0.8042,3628.0,3626.8,2.75719]
[1732895883531,0.8042,3628.0,3626.8,3.308641]
[1732895883818,0.8042,3628.0,3626.8,0.551451]
[1732895884232,0.8042,3628.0,3626.9,2.7571]
[1732895885088,0.8042,3628.0,3626.7,2.75731]
[1732895885293,0.8042,3628.0,3626.8,2.75719]
[1732895885582,0.8042,3628.0,3626.4,3.56643]
[1732895885895,0.8042,3628.0,3626.5,2.75742]
[1732895886106,0.8042,3628.0,3626.0,0.8093]
[1732895886307,0.8226,3627.7,3625.7,0.8093]
[1732895886620,0.8226,3627.7,3625.4,0.351276]
[1732895886621,0.8226,3627.6,3625.4,1.160576]
[1732895886820,0.8226,3627.6,3625.9,2.75787]
[1732895886995,0.8226,3627.6,3625.5,2.75824]
[1732895887357,0.8226,3627.6,3625.6,0.6677076]
[1732895887521,0.8226,3627.6,3626.0,2.75778]
[1732895887724,3.0,3627.3,3626.1,0.8093]
[1732895887911,0.8179,3627.2,3625.8,0.8093]
[1732895888820,0.8179,3627.2,3625.8,3.56726]
[1732895889026,0.8179,3627.2,3625.8,3.56727]
[1732895889516,0.8179,3627.2,3625.9,2.75792]
[1732895891448,0.8179,3627.2,3625.8,0.8093]
[1732895892012,0.8179,3627.2,3625.8,3.56729]
[1732895892214,0.8179,3627.2,3625.8,1.44183]
[1732895892605,0.8179,3627.2,3625.8,0.63253]
[1732895893250,0.8179,3627.2,3625.7,2.75801]
[1732895893251,0.8179,3627.2,3625.5,3.55057]
[1732895893561,0.8179,3627.2,3625.6,2.7581]
[1732895893767,0.8179,3627.2,3625.5,0.7924]
[1732895894126,0.7516,3626.9,3625.5,3.55063]
[1732895894322,0.7516,3626.9,3625.6,2.75815]
[1732895894743,0.7516,3626.9,3625.7,2.75808]
[1732895895167,0.8007,3626.7,3625.2,2.75846]
[1732895895880,0.8007,3626.7,3625.3,2.75838]
[1732895896165,0.8007,3626.7,3625.4,2.75831]
[1732895896828,0.8007,3626.7,3623.9,2.49221418]
[1732895897163,0.8007,3626.7,3623.6,0.3757]
[1732895897164,0.7771,3626.4,3624.7,2.75883]
[1732895897321,0.7771,3626.4,3625.0,2.75855]
[1732895897527,0.7771,3626.4,3625.1,2.75854]
[1732895897727,0.7771,3626.4,3624.9,2.75864]
[1732895897949,0.7771,3626.4,3624.5,2.759]
[1732895898152,0.7771,3626.4,3625.0,2.75855]
[1732895898363,0.7771,3626.4,3625.1,2.75853]
[1732895898748,0.7771,3626.4,3625.6,2.75815]
[1732895899054,0.7771,3626.4,3625.9,2.75793]
[1732895899236,0.7771,3626.4,3625.7,2.75808]
[1732895899421,0.7771,3626.4,3625.4,2.75827]
[1732895899623,0.7771,3626.4,3625.4,3.034097]
[1732895899938,0.7771,3626.4,3625.1,2.75853]
[1732895900148,0.7771,3626.4,3625.2,2.75846]
[1732895901063,0.7771,3626.4,3625.4,2.75831]
[1732895901497,0.7771,3626.4,3625.5,2.75823]
[1732895901646,0.7771,3626.4,3625.7,2.75807]
[1732895901982,0.7771,3626.4,3625.8,3.033807]
[1732895902187,0.7771,3626.4,3625.8,0.275807]
[1732895902409,0.7771,3626.4,3625.5,2.75823]
[1732895903060,0.7771,3626.4,3625.6,2.7581]
[1732895905447,0.7771,3626.4,3625.4,2.75829]
[1732895905750,0.7771,3626.4,3625.5,2.75822]
[1732895905949,0.7771,3626.4,3625.2,2.75844]
[1732895906258,0.7771,3626.4,3624.9,2.75863]
[1732895906457,0.7771,3626.4,3624.6,0.383575]
[1732895906989,0.7971,3626.3,3624.6,2.75885]
[1732895907345,0.7971,3626.3,3624.8,2.75875]
[1732895907555,0.7971,3626.3,3624.8,2.75873]
[1732895907766,0.7971,3626.3,3624.9,2.75865]
[1732895907965,0.7971,3626.3,3624.8,5.51744]
[1732895908167,0.7971,3626.3,3624.9,2.75866]
[1732895908989,0.7971,3626.3,3624.7,2.7588]
[1732895909189,0.7971,3626.3,3624.6,2.75887]
[1732895909357,0.7971,3626.3,3624.9,2.75868]
[1732895910192,0.7971,3626.3,3624.7,2.75884]
[1732895910352,0.7971,3626.3,3625.0,2.75862]
[1732895911193,0.7971,3626.3,3624.8,2.75875]
[1732895911393,0.7971,3626.3,3624.8,2.75874]
[1732895912394,0.7971,3626.3,3624.8,0.275874]
[1732895912626,0.7971,3626.3,3624.7,2.75877]
[1732895912993,0.7971,3626.3,3625.0,2.7586]
[1732895913527,0.7971,3626.3,3625.2,2.7584]
[1732895913736,0.7971,3626.3,3625.4,2.7583]
[1732895913900,0.7971,3626.3,3625.1,0.8315]
[1732895914241,0.7971,3626.3,3624.9,2.75864]
[1732895914536,0.7971,3626.3,3625.0,2.75856]
[1732895914837,0.7971,3626.3,3625.1,2.75853]
[1732895915193,0.7971,3626.3,3625.2,2.75846]
[1732895915926,0.7971,3626.3,3625.1,0.629781]
[1732895919289,0.7971,3626.3,3624.5,2.75898]
[1732895919493,0.7971,3626.3,3624.5,2.75894]
[1732895919693,0.7971,3626.3,3624.7,2.75884]
[1732895919929,0.7971,3626.3,3625.0,2.75861]
[1732895920550,0.7971,3626.3,3625.1,2.75853]
[1732895920771,0.7971,3626.3,3625.1,0.63107]
[1732895920933,0.7971,3626.3,3624.9,2.75863]
[1732895921124,0.7971,3626.3,3624.6,2.7589]
[1732895921329,0.7971,3626.3,3624.9,2.75869]
[1732895921727,0.7971,3626.3,3625.1,2.75853]
[1732895922356,0.7971,3626.3,3624.9,2.75869]
[1732895922553,0.7971,3626.3,3625.0,2.75861]
[1732895922754,0.7971,3626.3,3625.1,2.75853]
[1732895923771,0.7971,3626.3,3625.0,2.7586]
[1732895923979,0.7971,3626.3,3625.1,2.75853]
[1732895925128,0.7971,3626.3,3624.9,3.31038]
[1732895925328,0.7971,3626.3,3624.8,2.75872]
[1732895925739,0.7971,3626.3,3624.9,2.75866]
[1732895926346,0.7971,3626.3,3625.0,2.75856]
[1732895927187,0.7971,3626.3,3625.1,2.75849]
[1732895927748,0.7971,3626.3,3625.0,2.75856]
[1732895927749,0.7971,3626.3,3625.2,2.75843]
[1732895928978,0.7971,3626.3,3625.0,5.51712]
[1732895929276,0.7971,3626.3,3624.9,2.75865]
[1732895930379,0.7971,3626.3,3624.9,3.310393]
[1732895930671,0.7971,3626.3,3624.9,2.75865]
[1732895931044,0.7971,3626.3,3624.7,2.75882]
[1732895931483,0.7971,3626.3,3624.7,2.75881]
[1732895931691,0.7971,3626.3,3624.6,2.75891]
[1732895931897,0.7971,3626.3,3624.3,2.75913]
[1732895932048,11.8,3626.3,3624.5,2.75893]
[1732895932248,0.8116,3626.1,3624.5,2.75893]
[1732895932520,0.8116,3626.1,3624.7,2.75883]
[1732895932991,0.8116,3626.1,3624.8,2.75876]
[1732895933159,0.8116,3626.1,3624.5,2.75896]
[1732895933350,0.8116,3626.1,3624.7,2.75883]
[1732895934063,4.0,3626.0,3624.8,2.75876]
[1732895934260,0.7548,3625.8,3624.8,2.75876]
[1732895935987,0.7548,3625.8,3624.7,2.75883]
[1732895936192,0.7548,3625.8,3624.5,2.75893]
[1732895936394,0.7548,3625.8,3624.6,2.75888]
[1732895937054,0.7548,3625.8,3624.7,2.75884]
[1732895937404,4.0,3626.0,3623.4,2.75976]
[1732895937405,0.8247,3625.5,3623.4,2.75976]
[1732895937605,0.8247,3625.5,3623.1,0.7616]
[1732895937748,0.8247,3625.5,3623.1,1.1282]
[1732895937749,3.0,3625.4,3623.1,1.1282]
[1732895938100,0.8247,3625.2,3623.1,1.1282]
[1732895938253,0.8247,3625.2,3623.0,7.76012]
[1732895938453,8.8,3624.9,3623.1,2.76004]
[1732895938820,0.7989,3624.7,3623.1,2.76006]
[1732895939384,0.7989,3624.7,3623.0,5.0]
[1732895939691,3.0,3624.8,3623.0,5.0]
[1732895939692,0.8286,3624.4,3623.0,5.0]
[1732895940706,0.8286,3624.4,3623.0,5.776028]
[1732895941010,0.8286,3624.4,3623.4,2.75976]
[1732895941155,0.8286,3624.4,3623.2,2.75997]
[1732895941594,0.8286,3624.4,3623.0,5.0]
[1732895942702,0.7764,3624.3,3623.0,5.0]
[1732895942928,0.7764,3624.2,3623.0,5.0]
[1732895945441,0.7764,3624.2,3623.0,5.5]
[1732895945810,4.7707,3624.1,3623.0,5.5]
[1732895946143,8.8,3625.0,3623.0,5.5]
[1732895946144,0.7707,3624.0,3623.0,5.5]
[1732895953394,0.7707,3624.0,3623.0,5.0]
[1732895955305,3.0,3623.8,3623.0,5.0]
[1732895955588,0.7923,3623.7,3623.0,5.0]
[1732895956245,3.0,3623.8,3623.0,5.0]
[1732895956246,4.0,3623.6,3623.0,5.0]
[1732895956584,0.784,3623.4,3623.0,5.0]
[1732895958415,3.0,3623.3,3623.0,5.0]
[1732895958751,12.5684,3623.1,3623.0,5.0]
[1732895958960,12.5684,3623.1,3622.3,5.0]
[1732895958961,3.0,3623.0,3622.3,5.0]
[1732895959858,3.0,3622.8,3622.3,5.0]
[1732895960158,0.5127,3622.8,3622.3,5.5]
[1732895960366,8.8,3624.0,3622.3,5.5]
[1732895960367,0.5127,3623.1,3622.3,5.5]
[1732895960647,0.5127,3623.1,3622.3,5.0]
[1732895961050,0.5127,3623.1,3622.4,0.8076]
[1732895962245,0.5127,3623.1,3622.3,5.0]
[1732895965151,0.5127,3623.8,3622.4,2.76059]
[1732895965355,0.25379716,3623.7,3622.3,7.76067]
[1732895965654,0.25379716,3623.6,3622.4,1.134622]
[1732895965850,0.76649716,3623.5,3622.4,1.134622]
[1732895966044,0.5127,3623.5,3622.4,1.134622]
[1732895966241,0.5127,3623.5,3622.3,5.0]
[1732895966242,0.25379716,3623.4,3622.3,5.0]
[1732895966471,0.5127,3623.3,3622.3,5.0]
[1732895966767,0.5127,3623.1,3622.3,5.0]
[1732895967258,0.25453505,3623.0,3622.3,5.0]
[1732895967447,0.76723505,3622.9,3622.3,5.0]
[1732895967644,0.25453505,3622.8,3622.3,5.0]
[1732895967852,0.5127,3622.9,3622.3,5.0]
[1732895968030,0.25448438,3622.8,3622.3,5.0]
[1732895968230,0.5127,3622.9,3622.3,5.0]
[1732895968471,0.25447886,3622.8,3622.3,5.0]
[1732895968670,0.5127,3622.9,3622.3,5.0]
[1732895968960,0.25444975,3622.8,3622.3,5.0]
[1732895969165,0.5127,3623.3,3622.3,5.0]
[1732895969453,0.5127,3623.1,3622.3,5.0]
[1732895969676,0.5127,3622.9,3622.3,5.0]
[1732895969966,0.25442582,3622.8,3622.3,5.0]
[1732895970146,0.5127,3622.7,3622.3,5.0]
[1732895972861,0.5127,3623.4,3622.4,2.76059]
[1732895973068,0.5127,3623.4,3622.3,5.7745]
[1732895973238,0.5127,3623.4,3622.3,8.53517]
[1732895973434,0.5127,3623.4,3622.3,5.7745]
[1732895973742,0.5127,3623.4,3622.4,2.7606]
[1732895973945,0.5127,3623.4,3622.6,2.76043]
[1732895974567,0.5127,3623.4,3622.5,2.76047]
[1732895974733,0.5127,3623.4,3622.6,2.76043]
[1732895974938,0.5127,3623.4,3622.6,2.76041]
[1732895975334,0.5127,3623.4,3622.4,2.7606]
[1732895975765,0.5127,3623.4,3622.8,2.76023]
[1732895975925,0.5127,3623.4,3622.8,2.76024]
[1732895976238,0.5127,3623.4,3622.6,2.76038]
[1732895976583,0.5127,3623.4,3622.5,2.76048]
[1732895976970,0.5127,3623.4,3622.4,0.40115233]
[1732895977469,0.5127,3623.4,3622.3,5.0]
[1732895977673,0.25419606,3623.3,3622.3,5.0]
[1732895977985,0.25419606,3623.2,3622.3,5.0]
[1732895978195,0.25419606,3623.1,3622.3,5.0]
[1732895978481,0.5127,3623.4,3622.3,5.0]
[1732895978643,0.66081546,3623.3,3622.3,5.0]
[1732895978849,0.25431857,3623.2,3622.3,5.0]
[1732895979085,0.25431857,3623.1,3622.3,5.0]
[1732895979390,0.5127,3623.4,3622.3,5.0]
[1732895979391,0.25431857,3623.0,3622.3,7.76064]
[1732895979679,0.25431857,3622.9,3622.4,1.052136]
[1732895979886,0.25434451,3623.2,3622.5,2.76052]
[1732895980045,0.5127,3623.4,3622.6,0.768]
[1732895980245,0.25433657,3623.3,3622.6,0.768]
[1732895980447,0.25433657,3623.2,3622.6,0.768]
[1732895980688,0.25433657,3623.2,3622.6,1.6992907]
[1732895980883,0.5127,3623.4,3622.4,2.76059]
[1732895981191,0.25436821,3623.3,3622.3,8.52867]
[1732895981492,0.25436821,3623.2,3622.3,5.768]
[1732895981786,0.5127,3623.0,3622.3,5.0]
[1732895981989,0.25436821,3622.9,3622.3,5.0]
[1732895982286,2.76051,3622.6,3622.3,5.0]
[1732895982500,0.25436821,3622.5,3622.3,5.0]
[1732895982823,0.25444094,3622.4,3622.3,5.0]
[1732895982976,0.25444094,3622.7,3622.3,5.0]
[1732895983301,3.2733,3622.4,3622.3,5.0]
[1732895983589,3.52774094,3622.4,3622.3,5.0]
[1732895986249,7.52774094,3622.4,3622.3,5.0]
[1732895986765,7.52774094,3622.4,3622.3,3.02459717]
[1732895986766,10.52774094,3622.4,3622.3,3.02459717]
[1732895987155,61.89996894,3622.4,3622.3,3.02459717]
[1732895987356,61.89996894,3622.4,3622.3,1.64425717]
[1732895987654,17.1110434,3622.4,3622.3,1.64425717]
[1732895987899,16.5983434,3622.4,3622.3,1.13155717]
[1732895988101,5.76098,3621.9,3621.6,5.0]
[1732895988309,14.56113,3621.7,3621.6,3.61939]
[1732895988603,27.38862631,3621.7,3621.6,3.61939]
[1732895988963,28.14879526,3621.7,3621.6,0.85817]
[1732895989400,19.39411631,3621.7,3621.6,0.85817]
[1732895990218,22.70084631,3621.7,3620.9,5.0]
[1732895990377,5.76166,3621.0,3620.9,3.60371786]
[1732895990703,6.59464631,3621.0,3620.9,3.60371786]
[1732895991388,5.7622,3620.3,3620.2,5.0]
[1732895991711,6.59518631,3620.3,3620.2,5.0]
[1732895993265,13.62475526,3620.3,3620.2,0.85658]
[1732895993466,12.79176895,3620.3,3620.2,0.85658]
[1732895993667,13.61941051,3620.3,3620.2,1e-05]
[1732895994319,22.51941051,3620.3,3620.2,1e-05]
[1732895994767,16.25001051,3620.3,3620.2,1e-05]
[1732895995209,28.45424251,3620.3,3620.2,1e-05]
[1732895995432,24.45424251,3620.3,3620.2,1e-05]
[1732895995722,19.84367969,3620.3,3620.2,1e-05]
[1732895995903,20.14057969,3620.3,3620.2,1e-05]
[1732895996589,16.70475269,3620.3,3620.2,1e-05]
[1732895996792,19.97944983,3620.3,3620.2,1e-05]
[1732895996990,20.14312383,3620.3,3620.2,1e-05]
[1732895997196,16.70199583,3620.3,3620.2,1e-05]
[1732895997400,20.14312383,3620.3,3620.2,1e-05]
[1732895997793,24.92228383,3620.3,3620.2,1e-05]
[1732895998330,28.92228383,3620.3,3620.2,1e-05]
[1732895999496,2.76273,3619.6,3619.5,5.0]
[1732895999689,7.34778365,3619.6,3619.5,5.0]
[1732896000866,8.8,3619.7,3619.5,5.0]
[1732896001018,4.82379346,3619.6,3619.5,5.0]
[1732896001827,3.58652346,3619.6,3619.5,5.0]
[1732896002531,4.33753599,3619.6,3619.5,5.0]
[1732896002895,3.51404187,3619.6,3619.5,5.0]
[1732896003098,3.58626415,3619.6,3619.5,5.0]
[1732896003530,1.57484602,3619.6,3619.5,5.0]
[1732896003800,4.33757602,3619.6,3619.5,5.0]
[1732896005133,4.33757602,3619.6,3619.5,5.7929]
[1732896005134,1.57484602,3619.6,3619.5,5.7929]
[1732896005611,1.57484602,3619.6,3619.5,5.0]
[1732896005810,1.40259928,3619.6,3619.5,5.0]
[1732896006148,0.65193736,3619.6,3619.5,5.0]
[1732896006293,1.38185897,3619.6,3619.5,5.0]
[1732896006715,2.13317084,3619.6,3619.5,5.8113]
[1732896006910,1.38185897,3619.6,3619.5,5.8113]
[1732896007959,1.80053515,3619.6,3619.5,5.8113]
[1732896008251,1.38185897,3619.6,3619.5,5.8113]
[1732896008464,1.70338429,3619.6,3619.5,5.8113]
[1732896008958,1.70338429,3619.6,3619.5,5.0]
[1732896009154,1.70521551,3619.6,3619.5,5.0]
[1732896009722,1.70521551,3619.6,3619.5,7.76281]
[1732896010069,1.14794288,3619.6,3619.5,7.76281]
[1732896010382,1.14794288,3619.6,3619.5,8.55061]
[1732896011234,1.41652681,3619.6,3619.5,8.55061]
[1732896011566,1.14794288,3619.6,3619.5,8.55061]
[1732896011749,1.14794288,3619.6,3619.5,9.681965]
[1732896012335,1.15091615,3619.6,3619.5,9.681965]
[1732896012672,0.42101969,3619.9,3619.8,2.76258]
[1732896012836,0.1726,3621.5,3619.5,9.681965]
[1732896012837,0.42109417,3620.1,3619.9,3.621]
[1732896013020,0.42109417,3620.4,3620.2,2.76226]
[1732896013365,2.76193,3620.7,3620.0,3.12452]
[1732896013517,0.26978275,3620.2,3620.0,0.3621]
[1732896013719,0.26978275,3620.2,3619.9,0.8585]
[1732896014015,0.26978275,3620.2,3620.1,2.76235]
[1732896014243,2.76167,3621.0,3620.1,3.62915]
[1732896014447,0.27006806,3620.2,3620.1,0.8668]
[1732896014642,0.27006806,3620.4,3620.2,2.76227]
[1732896014872,0.42203823,3620.4,3620.3,3.904227]
[1732896015075,0.42203823,3620.6,3620.5,3.62784]
[1732896015259,0.27006806,3620.8,3620.5,3.62784]
[1732896015260,0.27006806,3620.8,3620.7,3.62769]
[1732896015457,2.76091,3622.0,3621.0,2.76161]
[1732896015672,3.62343,3622.1,3620.7,0.8658]
[1732896015857,3.62343,3622.1,3619.9,2.76244]
[1732896015858,2.76098,3621.9,3621.4,0.8443]
[1732896016194,2.76118,3621.7,3621.4,0.8443]
[1732896016346,3.0,3622.1,3621.4,0.8443]
[1732896016543,0.859,3622.4,3621.4,3.60564]
[1732896016749,0.55276298,3621.5,3621.4,0.8443]
[1732896017154,0.55276298,3621.5,3621.4,3.60566]
[1732896018052,0.55276298,3621.5,3621.4,0.8443]
[1732896018349,2.76117,3621.7,3621.0,3.56613]
[1732896018553,0.27035249,3621.1,3621.0,0.8045]
[1732896018759,4.16220744,3622.4,3621.0,0.8045]
[1732896018962,2.76144,3621.3,3621.0,0.8045]
[1732896019175,2.76181,3620.9,3620.0,2.76242]
[1732896019377,0.27023734,3620.3,3620.1,0.8045]
[1732896019590,0.27023734,3620.2,3620.1,3.56685]
[1732896019896,2.7616,3621.1,3620.1,3.56685]
[1732896019897,0.42227673,3620.3,3620.2,2.76227]
[1732896020078,0.27027694,3620.4,3620.3,2.7622]
[1732896020280,2.76152,3621.2,3620.4,2.76212]
[1732896020488,0.27033491,3620.5,3620.4,2.76212]
[1732896020791,3.58582,3621.6,3620.4,2.76212]
[1732896020792,0.69278145,3620.8,3620.6,2.76197]
[1732896020952,0.27036472,3620.8,3620.4,0.8329]
[1732896021149,0.27036472,3620.8,3620.7,3.56389]
[1732896021459,3.57339,3621.9,3620.7,3.56389]
[1732896021460,0.27036472,3621.0,3620.9,2.76174]
[1732896021681,0.42241673,3621.1,3620.7,3.56389]
[1732896021864,0.42241673,3621.1,3621.0,2.76166]
[1732896022073,0.27035825,3621.1,3621.0,2.76166]
[1732896022605,0.27035825,3621.3,3621.1,3.61259]
[1732896022749,0.27035825,3621.3,3621.2,2.76151]
[1732896023101,0.72984256,3621.3,3621.2,2.76151]
[1732896024777,0.98312408,3621.3,3621.2,2.76151]
[1732896024983,0.84801267,3621.3,3621.0,2.76161]
[1732896025296,0.84801267,3621.3,3620.8,0.8477]
[1732896025297,0.57765442,3621.2,3620.8,0.8477]
[1732896025485,0.59473115,3621.1,3620.8,0.8477]
[1732896025659,0.84801267,3621.0,3620.8,0.8477]
[1732896025958,0.3243729,3620.9,3620.8,0.8477]
[1732896026648,0.3243729,3620.9,3620.8,3.60952]
[1732896027250,0.3243729,3620.9,3620.8,4.07132973]
[1732896027797,0.27035825,3621.5,3620.8,1.30950973]
[1732896027996,0.32427279,3621.4,3620.9,0.8033]
[1732896028156,0.27035825,3621.5,3620.9,0.8033]
[1732896028157,0.52363977,3621.5,3621.3,2.76143]
[1732896028358,0.57765695,3621.4,3621.3,2.76143]
[1732896028660,0.5776823,3621.4,3621.3,2.76143]
[1732896029062,0.32440078,3621.4,3621.3,2.76143]
[1732896029673,0.32440078,3621.4,3621.3,3.62083]
[1732896030894,0.8082382,3621.5,3621.4,2.76136]
[1732896031607,0.27027595,3621.6,3621.4,2.76136]
[1732896032260,0.25348627,3621.9,3621.4,2.76136]
[1732896032489,2.76083,3622.1,3621.4,2.76136]
[1732896032690,2.76091,3622.0,3621.4,2.76136]
[1732896033118,0.27033076,3621.5,3621.4,2.76136]
[1732896033278,0.25343483,3621.9,3621.3,0.8594]
[1732896033482,2.76106,3621.8,3621.3,0.8594]
[1732896033697,2.76105,3621.8,3620.9,0.8757]
[1732896033883,3.01446483,3621.9,3620.9,0.8757]
[1732896033884,0.55984363,3621.5,3620.9,0.8757]
[1732896034193,3.32112363,3621.5,3620.9,3.63744]
[1732896034679,0.55984363,3621.5,3620.9,3.6374]
[1732896034880,0.55984363,3621.5,3621.0,2.76163]
[1732896035418,0.55984363,3621.5,3621.0,2.76166]
[1732896035624,0.55984363,3621.5,3620.9,0.8757]
[1732896035625,0.55984363,3621.5,3621.2,2.76151]
[1732896035935,0.55984363,3621.5,3621.3,2.76138]
[1732896036227,0.55984363,3621.5,3621.2,2.76151]
[1732896037278,0.55984363,3621.5,3621.1,2.76154]
[1732896037479,0.55984363,3621.5,3621.0,2.7616]
[1732896037683,0.55984363,3621.5,3621.2,2.76151]
[1732896037924,0.55984363,3621.5,3621.3,2.76138]
[1732896038225,0.55984363,3621.5,3620.9,0.8757]
[1732896038226,0.55984363,3621.5,3621.1,2.76153]
[1732896038581,0.25348906,3621.7,3621.4,3.59979]
[1732896038884,0.80474863,3621.7,3621.4,3.54979]
[1732896039282,0.80474863,3621.7,3621.5,2.76128]
[1732896039527,0.80474863,3621.7,3621.6,2.76121]
[1732896039698,1.05895309,3621.7,3621.6,2.76121]
[1732896040235,1.05894374,3621.7,3621.6,2.76121]
[1732896040938,0.80474863,3621.7,3621.6,2.76121]
[1732896041790,1.05913639,3621.7,3621.6,2.76121]
[1732896042018,1.05913639,3621.7,3621.4,3.54985]
[1732896042219,0.25438776,3621.6,3621.5,2.76126]
[1732896043024,0.25438776,3621.6,3621.5,3.392371]
[1732896044227,0.25438776,3621.6,3621.5,4.236871]
[1732896044445,0.25348906,3621.7,3621.6,2.76121]
[1732896044792,0.25348906,3621.7,3621.6,3.66831]
[1732896046535,0.25492753,3622.1,3621.2,0.8812]
[1732896046748,0.25492753,3622.0,3621.2,0.8812]
[1732896046908,0.25492753,3621.9,3621.3,2.76139]
[1732896047089,0.25492753,3621.8,3621.4,2.7613]
[1732896047291,0.8892,3622.2,3621.6,2.76121]
[1732896047492,0.25476877,3622.1,3621.6,0.8963]
[1732896047746,0.25476877,3622.0,3621.7,2.76113]
[1732896048073,2.76054,3622.5,3621.9,2.76096]
[1732896048188,0.25483504,3622.4,3622.0,2.76088]
[1732896048393,2.76031,3622.8,3622.2,2.76075]
[1732896048394,0.25483504,3622.3,3622.2,2.76075]
[1732896049037,0.25483504,3622.3,3622.1,2.76078]
[1732896049333,0.25483504,3622.2,3622.1,2.76078]
[1732896050394,0.25483504,3622.2,3622.0,2.76085]
[1732896050602,0.25483504,3622.1,3622.0,2.76089]
[1732896053280,0.25483504,3622.1,3621.8,2.76104]
[1732896053480,0.25483504,3622.0,3621.7,2.76111]
[1732896053683,0.8401,3622.2,3621.9,2.76098]
[1732896053891,0.25523567,3622.1,3621.9,2.76098]
[1732896054174,0.25523567,3622.1,3621.4,2.7613]
[1732896054175,2.76083,3622.1,3621.4,2.7613]
[1732896054380,0.8401,3622.2,3621.6,2.76116]
[1732896054535,0.8401,3622.2,3621.7,2.76112]
[1732896054536,3.60085,3622.2,3621.7,2.76112]
[1732896055078,2.76085,3622.1,3621.5,2.76122]
[1732896055280,0.8401,3622.2,3621.4,2.76134]
[1732896055281,3.60085,3622.2,3621.6,2.76119]
[1732896056749,2.76085,3622.1,3621.5,2.76123]
[1732896057079,2.76085,3622.1,3621.6,2.76119]
[1732896057636,0.8401,3622.2,3621.6,2.7612]
[1732896058036,0.8401,3622.2,3621.4,2.7613]
[1732896058037,3.60091,3622.2,3621.4,2.76134]
[1732896058374,3.60091,3622.2,3621.3,0.2759]
[1732896058375,2.76082,3622.1,3621.3,3.03732]
[1732896058593,2.76102,3621.9,3621.3,3.03733]
[1732896058937,2.76106,3621.8,3621.3,0.2759]
[1732896059137,2.76117,3621.7,3621.3,0.2759]
[1732896059383,5.52205,3621.9,3621.3,0.2759]
[1732896059569,2.76102,3621.9,3621.3,0.2759]
[1732896059783,2.76102,3621.9,3621.3,3.03732]
[1732896059969,0.8713,3622.6,3621.3,0.944055]
[1732896060298,2.76075,3622.2,3621.4,0.8555]
[1732896060614,2.76138,3621.4,3620.7,3.61732]
[1732896060899,2.76098,3621.9,3620.8,0.2759]
[1732896061062,2.76138,3621.4,3620.8,3.03771]
[1732896061448,2.76121,3621.6,3620.7,0.8555]
[1732896061449,2.76121,3621.6,3621.0,3.0375]
[1732896061649,2.7609,3622.0,3621.4,2.7613]
[1732896061873,0.54527787,3621.6,3621.4,0.897]